bitfinex-derivatives/quotes_ETHF0:USTF0_20250616
["timestamp","ask_amount","ask_price","bid_price","bid_amount"]
[1750032000293,0.04648481,2548.0,2547.9,0.6287]
[1750032003302,0.04648481,2548.0,2547.9,1.9747]
[1750032003494,0.04648481,2548.0,2547.9,2.96531368]
[1750032003694,0.04648481,2548.0,2547.9,0.6287]
[1750032004199,0.04648481,2548.0,2547.9,2.96531368]
[1750032005096,0.6127,2548.8,2547.9,2.96531368]
[1750032005097,9.736,2548.8,2547.9,10.7062349]
[1750032005288,3.2078,2548.5,2548.2,2.33775355]
[1750032005496,3.2078,2548.5,2548.1,2.33775355]
[1750032006094,0.78474,2548.2,2548.1,2.33775355]
[1750032006294,0.78477,2548.1,2547.9,6.95906355]
[1750032006498,0.78477,2548.1,2548.0,0.7848]
[1750032006706,0.7848,2548.0,2547.9,6.17425355]
[1750032007008,0.7848,2548.0,2547.9,0.6287]
[1750032008204,0.7848,2548.0,2547.9,1.41353]
[1750032008504,0.7848,2548.0,2547.9,4.42308355]
[1750032008704,0.7848,2548.0,2547.9,3.63825355]
[1750032009803,0.7848,2548.0,2547.9,4.42308355]
[1750032009997,1.96159,2548.6,2547.9,1.3005]
[1750032009998,3.2078,2548.5,2547.9,1.3005]
[1750032010196,0.7848,2548.0,2547.9,4.42694102]
[1750032010395,0.78479,2548.1,2547.9,3.64212102]
[1750032010596,0.78476,2548.2,2548.0,0.7848]
[1750032010799,0.78476,2548.2,2548.0,3.12642102]
[1750032010993,0.78477,2548.1,2548.0,2.34162102]
[1750032011197,0.78477,2548.1,2548.0,3.12642102]
[1750032011407,0.78476,2548.2,2548.0,3.12642102]
[1750032012001,0.78477,2548.1,2548.0,3.12642102]
[1750032012202,0.78477,2548.1,2548.0,2.34162102]
[1750032012399,0.78476,2548.2,2548.0,3.12641102]
[1750032012805,0.78477,2548.1,2548.0,3.12641102]
[1750032013110,0.78476,2548.2,2548.0,3.12641102]
[1750032013402,0.78477,2548.1,2548.0,2.34162102]
[1750032014200,0.7848,2548.0,2547.9,5.29313]
[1750032015007,0.78479,2548.1,2547.9,5.29313]
[1750032015202,0.78479,2548.1,2548.0,2.34242357]
[1750032015504,0.78479,2548.1,2548.0,3.12722357]
[1750032016110,0.78479,2548.1,2548.0,2.34242357]
[1750032016700,0.78476,2548.2,2548.0,2.34242357]
[1750032016905,3.2078,2548.5,2548.1,0.78475]
[1750032017101,0.78477,2548.1,2548.0,2.34242357]
[1750032020213,3.99257,2548.1,2548.0,2.34242357]
[1750032020502,0.78495,2547.5,2547.4,0.00589356]
[1750032020711,0.78494,2547.6,2547.4,1.44336356]
[1750032020901,3.2078,2548.1,2547.4,0.65839356]
[1750032021106,0.95619896,2548.0,2547.8,0.78483]
[1750032021307,0.7848,2548.0,2547.9,1.2807]
[1750032025216,0.78489,2547.7,2547.6,3.2078]
[1750032026217,0.78492,2547.6,2547.5,0.6304]
[1750032028518,0.78495,2547.5,2547.4,0.00589356]
[1750032032919,3.99275,2547.5,2547.4,0.00589356]
[1750032034917,5.26855,2547.5,2547.4,0.00589356]
[1750032035123,7.01973939,2547.5,2547.4,0.00589356]
[1750032035320,12.01973939,2547.5,2547.4,3.56e-06]
[1750032038526,36.17773939,2547.5,2547.4,3.56e-06]
[1750032040025,35.22205,2547.5,2547.4,3.56e-06]
[1750032040230,36.17625738,2547.5,2547.4,3.56e-06]
[1750032040924,45.91225738,2547.5,2547.4,3.56e-06]
[1750032041624,49.04419344,2547.5,2547.4,3.56e-06]
[1750032042322,45.91225738,2547.5,2547.4,3.56e-06]
[1750032042518,49.04419344,2547.5,2547.4,3.56e-06]
[1750032043027,45.91225738,2547.5,2547.4,3.56e-06]
[1750032044228,28.06525738,2547.5,2547.4,3.56e-06]
[1750032044423,54.55608527,2547.5,2547.4,3.56e-06]
[1750032044928,52.21725738,2547.5,2547.4,3.56e-06]
[1750032046220,0.78532,2546.3,2546.2,0.6483]
[1750032046528,3.99312,2546.3,2546.2,0.6483]
[1750032049529,0.78532,2546.3,2546.2,0.6483]
[1750032049725,0.78532,2546.3,2546.2,5.6483]
[1750032050325,0.78532,2546.3,2546.2,7.0245]
[1750032050524,5.17092,2546.6,2546.2,7.0245]
[1750032050730,0.78529,2546.4,2546.3,1.3762]
[1750032051318,0.78532,2546.3,2546.2,0.6483]
[1750032051521,3.99312,2546.3,2546.2,0.6483]
[1750032057231,0.78539,2546.1,2546.0,0.65159356]
[1750032058540,0.78539,2546.1,2546.0,5.65159356]
[1750032058726,0.00589356,2546.3,2546.0,8.85939356]
[1750032058922,0.78535,2546.2,2546.1,1.3521]
[1750032060232,0.78535,2546.2,2546.1,6.3521]
[1750032060434,0.78535,2546.2,2546.1,6.9894]
[1750032060835,0.78535,2546.2,2546.1,7.77479]
[1750032061035,0.78535,2546.2,2546.1,7.77477]
[1750032061234,0.78535,2546.2,2546.1,1.9894]
[1750032064642,0.78535,2546.2,2546.1,0.6373]
[1750032065342,1.74367375,2546.2,2546.1,0.6373]
[1750032068544,0.78539,2546.1,2546.0,0.65159356]
[1750032068844,1.74371375,2546.1,2546.0,0.65159356]
[1750032072141,1.74371375,2546.1,2546.0,3.56e-06]
[1750032072948,2.99521375,2546.1,2546.0,3.56e-06]
[1750032073249,33.43221375,2546.1,2546.0,3.56e-06]
[1750032074246,62.18721375,2546.1,2546.0,3.56e-06]
[1750032074539,59.53595466,2546.1,2546.0,3.56e-06]
[1750032074746,57.85191375,2546.1,2546.0,3.56e-06]
[1750032079148,57.85991375,2546.1,2546.0,3.56e-06]
[1750032079450,61.90159,2546.1,2546.0,3.56e-06]
[1750032079642,62.86120933,2546.1,2546.0,3.56e-06]
[1750032079843,65.21195024,2546.1,2546.0,3.56e-06]
[1750032080044,64.25233091,2546.1,2546.0,3.56e-06]
[1750032080346,35.10633091,2546.1,2546.0,3.56e-06]
[1750032080554,59.28533091,2546.1,2546.0,3.56e-06]
[1750032080848,60.24496564,2546.1,2546.0,3.56e-06]
[1750032081046,57.89422473,2546.1,2546.0,3.56e-06]
[1750032081246,25.50002473,2546.1,2546.0,3.56e-06]
[1750032081448,55.97802473,2546.1,2546.0,3.56e-06]
[1750032082246,55.97802473,2546.1,2545.1,3.2078]
[1750032082247,1.96377,2545.8,2545.1,2.33412581]
[1750032082454,3.2078,2545.2,2544.4,0.6561]
[1750032082648,3.2078,2545.2,2544.6,0.78584]
[1750032082649,0.7858,2544.8,2544.6,0.78584]
[1750032082848,0.7858,2544.8,2544.7,2.0394]
[1750032083455,0.7858,2544.8,2544.7,7.0394]
[1750032084148,0.7858,2544.8,2544.7,0.6862]
[1750032084351,3.9936,2544.8,2544.7,0.6862]
[1750032084554,28.2946,2544.8,2544.7,0.6862]
[1750032084947,28.2946,2544.8,2544.5,0.00589356]
[1750032084948,0.78585,2544.6,2544.5,0.00589356]
[1750032087051,0.00589356,2545.0,2544.5,2.04546356]
[1750032087356,0.78585,2544.6,2544.5,1.25959356]
[1750032088051,0.78583,2544.7,2544.5,1.25959356]
[1750032088251,0.78585,2544.6,2544.5,1.25959356]
[1750032088758,0.78585,2544.6,2544.5,2.04547356]
[1750032089055,0.78585,2544.6,2544.5,1.25959356]
[1750032089256,30.613,2544.8,2544.5,1.25959356]
[1750032089451,33.8208,2544.8,2544.5,1.25959356]
[1750032089955,0.00589356,2545.0,2544.5,1.25959356]
[1750032090156,30.60889356,2545.0,2544.6,0.78582]
[1750032090357,30.60889356,2545.0,2544.7,1.3259]
[1750032090653,30.60889356,2545.0,2544.8,0.6383]
[1750032090858,30.60889356,2545.0,2544.9,1.3259]
[1750032091452,30.60889356,2545.0,2544.8,1.3155]
[1750032091648,0.00589356,2545.0,2544.9,0.78576]
[1750032091857,0.00589356,2545.0,2544.9,2.11166]
[1750032092058,0.00589356,2545.0,2544.9,7.11166]
[1750032093459,0.00589356,2545.0,2544.9,2.11166]
[1750032093660,0.00589356,2545.0,2544.9,1.3259]
[1750032093855,0.00589356,2545.0,2544.9,2.11166]
[1750032094052,0.00589356,2545.0,2544.9,7.11166]
[1750032094451,0.00589356,2545.0,2544.9,2.11166]
[1750032095564,0.00589356,2545.0,2544.9,1.3259]
[1750032095761,0.79163356,2545.0,2544.8,1.38287406]
[1750032096261,0.79163356,2545.0,2544.8,2.16865406]
[1750032097059,0.00589356,2545.0,2544.9,0.78576]
[1750032097663,3.2078,2545.1,2545.0,0.78572]
[1750032098659,3.99351,2545.1,2544.9,2.03223]
[1750032098966,3.99351,2545.1,2544.9,0.78576]
[1750032099267,0.78572,2545.0,2544.8,1.38287406]
[1750032099467,0.78572,2545.0,2544.9,0.78576]
[1750032099854,0.78576,2544.9,2544.8,2.16863406]
[1750032100166,0.78573,2545.0,2544.9,0.78574]
[1750032100768,34.65152,2545.1,2545.0,0.78572]
[1750032101762,33.8658,2545.1,2545.0,0.78572]
[1750032103966,0.00589356,2545.3,2545.2,0.78566]
[1750032104769,0.78567,2545.2,2545.1,0.78568]
[1750032105066,0.68149356,2545.3,2544.8,1.38287406]
[1750032105263,3.2078,2545.0,2544.9,0.78576]
[1750032106269,25.05671,2545.1,2545.0,0.78573]
[1750032106471,24.271,2545.1,2545.0,0.78573]
[1750032106769,25.05669,2545.1,2545.0,0.78573]
[1750032107374,0.78574,2545.0,2544.9,0.78574]
[1750032107774,31.42371,2545.1,2545.0,0.78573]
[1750032107971,0.78573,2545.0,2544.9,0.78573]
[1750032108171,3.99353,2545.0,2544.9,0.78573]
[1750032108677,3.99355,2545.0,2544.9,0.78576]
[1750032109779,3.2078,2545.0,2544.9,0.78576]
[1750032110376,32.7004,2545.1,2545.0,0.78573]
[1750032110577,33.66659318,2545.1,2545.0,0.78573]
[1750032110776,33.66659318,2545.1,2545.0,0.85310406]
[1750032110982,7.33319318,2545.1,2545.0,0.85310406]
[1750032111186,6.367,2545.1,2545.0,0.85310406]
[1750032111485,0.00589356,2545.3,2545.0,0.85310406]
[1750032111486,0.00589356,2545.3,2545.0,0.06737406]
[1750032111684,0.00589356,2545.3,2545.2,0.78566]
[1750032112288,0.00589356,2545.3,2545.2,1.41606]
[1750032112784,33.8258,2545.6,2545.5,0.78557]
[1750032112785,3.2078,2545.6,2545.5,0.78557]
[1750032115578,34.60027,2545.9,2545.7,0.78548]
[1750032115780,0.96363711,2545.8,2545.7,0.78551]
[1750032116585,6.367,2546.2,2545.8,0.78548]
[1750032116787,6.367,2546.2,2545.9,0.625]
[1750032116788,25.19143173,2546.1,2545.9,0.625]
[1750032117087,9.5748,2546.3,2546.2,0.78536]
[1750032117481,0.6896,2546.5,2546.4,0.78529]
[1750032117687,7.0566,2546.5,2546.4,0.78529]
[1750032117895,6.367,2546.8,2546.4,3.2078]
[1750032118186,6.367,2546.8,2546.7,0.7852]
[1750032120592,7.15217,2546.8,2546.7,0.7852]
[1750032120793,6.367,2546.8,2546.7,0.7852]
[1750032122593,6.367,2546.8,2546.6,0.6223]
[1750032122892,6.367,2546.8,2546.7,0.7852]
[1750032123492,26.37833,2547.0,2546.6,0.6223]
[1750032123793,6.365,2547.1,2546.9,3.2078]
[1750032123991,7.051,2547.4,2547.3,0.78502]
[1750032124294,30.577,2547.4,2547.3,0.78502]
[1750032124683,6.365,2547.4,2547.3,0.78502]
[1750032124886,5.2277,2547.6,2547.5,0.78496]
[1750032125087,29.4407,2547.6,2547.5,0.78496]
[1750032125289,30.22562,2547.6,2547.5,0.78496]
[1750032125488,0.78497,2547.5,2547.4,0.78498]
[1750032125684,5.2277,2547.6,2547.5,0.78496]
[1750032125896,27.4188,2547.6,2547.5,0.78496]
[1750032126199,28.20372,2547.6,2547.5,0.78496]
[1750032126397,27.4188,2547.6,2547.5,0.78496]
[1750032126790,28.20372,2547.6,2547.5,0.78496]
[1750032127288,27.4188,2547.6,2547.5,0.78496]
[1750032127492,3.2078,2547.6,2547.5,0.78496]
[1750032127799,24.212,2547.6,2547.5,0.78496]
[1750032127997,24.99692,2547.6,2547.4,0.78496]
[1750032128194,0.78496,2547.5,2547.4,0.78496]
[1750032128492,0.785,2547.4,2547.3,0.785]
[1750032128698,2.03797,2547.5,2547.4,0.78499]
[1750032128893,0.785,2547.4,2547.3,0.785]
[1750032129094,1.253,2547.5,2547.4,0.78499]
[1750032131196,24.212,2547.6,2547.5,0.78496]
[1750032131397,24.99692,2547.6,2547.5,0.78496]
[1750032131798,24.212,2547.6,2547.4,0.78497]
[1750032131998,26.34944,2547.6,2547.5,0.78496]
[1750032132796,25.5645,2547.6,2547.5,0.78496]
[1750032133106,30.87091,2547.7,2547.6,0.78492]
[1750032133107,30.086,2547.7,2547.6,0.78492]
[1750032133296,7.011,2548.0,2547.5,1.96232]
[1750032133593,6.325,2548.0,2547.9,0.78483]
[1750032133795,3.2078,2548.1,2548.0,0.7848]
[1750032134002,0.6501,2548.2,2548.1,0.78477]
[1750032134196,24.8461,2548.2,2548.1,0.78477]
[1750032134999,25.63084,2548.2,2548.0,0.78478]
[1750032135398,25.63084,2548.2,2548.1,0.78477]
[1750032136698,25.63084,2548.2,2547.7,3.2078]
[1750032136699,24.8461,2548.2,2547.7,3.2078]
[1750032136997,0.78492,2547.7,2547.6,0.78492]
[1750032137206,0.78489,2547.8,2547.7,0.78489]
[1750032138205,0.7849,2547.7,2547.6,0.78491]
[1750032138405,0.78489,2547.8,2547.7,0.78489]
[1750032139503,25.5599,2547.9,2547.5,1.45004]
[1750032139700,1.9604,2547.8,2547.5,0.6651]
[1750032140303,0.78491,2547.7,2547.6,0.78492]
[1750032140905,0.78493,2547.6,2547.5,1.45004]
[1750032141206,0.78493,2547.6,2547.5,0.78494]
[1750032141705,0.6858,2547.7,2547.6,0.78493]
[1750032142109,0.6858,2547.7,2547.4,3.2078]
[1750032142110,8.28683,2548.3,2547.8,0.78486]
[1750032142312,0.78486,2547.9,2547.8,0.78486]
[1750032142608,0.78488,2547.8,2547.7,0.78487]
[1750032143306,27.40256,2548.0,2547.5,0.78494]
[1750032143695,0.78493,2547.6,2547.5,0.78494]
[1750032147305,7.572,2547.9,2547.4,3.2078]
[1750032147612,0.95251406,2547.8,2547.7,0.78488]
[1750032147905,0.78482,2548.0,2547.9,0.78482]
[1750032148102,1.738176,2548.0,2547.9,0.78482]
[1750032149307,0.953356,2548.0,2547.9,0.78482]
[1750032149508,31.27572,2548.3,2547.9,1.96208]
[1750032149714,0.94697698,2548.2,2548.1,0.78477]
[1750032150105,0.78477,2548.1,2548.0,1.43329]
[1750032150301,30.491,2548.3,2548.0,0.6485]
[1750032150506,30.491,2548.3,2548.2,0.78474]
[1750032150708,0.78476,2548.2,2548.1,0.78477]
[1750032151013,1.73166713,2548.2,2548.1,0.78477]
[1750032151206,0.94690713,2548.2,2548.1,0.78477]
[1750032152309,0.94715134,2548.3,2548.0,0.6485]
[1750032152509,0.94715134,2548.2,2548.1,2.81557]
[1750032152707,9.5318,2548.4,2548.3,0.78471]
[1750032153513,10.47984041,2548.4,2548.3,0.78471]
[1750032155212,34.62784041,2548.4,2548.3,0.78471]
[1750032155811,34.62784041,2548.4,2548.2,0.78473]
[1750032156013,0.78474,2548.2,2548.1,0.6758]
[1750032156310,0.78474,2548.2,2548.1,0.78477]
[1750032156505,0.78473,2548.3,2548.2,0.78474]
[1750032156908,1.73205497,2548.3,2548.2,0.78474]
[1750032157616,33.6798,2548.4,2548.3,0.78471]
[1750032157911,34.62808899,2548.4,2548.3,0.78471]
[1750032158617,35.41276899,2548.4,2548.3,0.78471]
[1750032159219,34.62808899,2548.4,2548.3,0.78471]
[1750032159618,34.62808899,2548.4,2548.0,1.9452]
[1750032159917,33.6808,2548.4,2548.0,1.9452]
[1750032160220,0.94723325,2548.3,2548.0,0.6485]
[1750032160420,0.78473,2548.3,2548.2,0.78474]
[1750032160719,1.73200884,2548.3,2548.2,0.78474]
[1750032161818,0.94727884,2548.3,2548.2,0.78474]
[1750032162221,1.73198884,2548.3,2548.2,0.78474]
[1750032162422,25.86098884,2548.3,2548.2,0.78474]
[1750032162918,25.07627884,2548.3,2548.2,0.78474]
[1750032163121,25.86098884,2548.3,2548.2,0.78474]
[1750032165417,25.07627884,2548.3,2547.8,0.6879]
[1750032165622,5.16978,2548.1,2547.4,1.3]
[1750032165826,0.78505,2547.2,2546.9,2.34688577]
[1750032166122,0.78505,2547.2,2546.8,3.2078]
[1750032166123,24.91405,2547.2,2546.8,3.8935]
[1750032166312,29.06973505,2547.2,2546.8,3.2078]
[1750032166523,30.34193505,2547.2,2546.8,3.99296]
[1750032166716,30.34193505,2547.2,2546.9,0.78512]
[1750032166921,30.34193505,2547.2,2546.8,3.99296]
[1750032167121,30.34193505,2547.2,2546.8,3.2078]
[1750032167324,30.34193505,2547.2,2546.8,3.99297]
[1750032167921,30.34193505,2547.2,2546.8,3.2078]
[1750032168318,30.34193505,2547.2,2546.8,3.99297]
[1750032168719,30.34193505,2547.2,2546.4,1.2664]
[1750032168915,0.78523,2546.7,2546.4,1.2664]
[1750032169120,24.127,2546.6,2546.5,0.78527]
[1750032169717,0.78514,2546.9,2546.4,1.2664]
[1750032169920,24.13,2546.7,2546.5,0.78524]
[1750032170128,24.13,2546.7,2546.4,2.6043]
[1750032170129,24.13,2546.7,2546.6,0.78524]
[1750032170622,24.91522,2546.7,2546.5,0.78525]
[1750032170922,24.91522,2546.7,2546.6,0.78524]
[1750032171224,25.4344,2546.7,2546.6,0.78524]
[1750032171416,24.13,2546.7,2546.6,0.78524]
[1750032175527,24.91521,2546.7,2546.6,0.78524]
[1750032175730,26.16551,2546.7,2546.6,0.78524]
[1750032176033,25.3803,2546.7,2546.6,0.78524]
[1750032176733,0.78524,2546.6,2546.4,0.64589356]
[1750032177036,24.115,2546.5,2546.4,1.43117356]
[1750032180628,6.298,2546.8,2546.7,0.78521]
[1750032180823,3.56e-06,2546.9,2546.8,0.78517]
[1750032181023,3.56e-06,2546.9,2546.8,1.45937]
[1750032181544,3.56e-06,2546.9,2546.4,0.00589356]
[1750032181545,13.26292356,2546.9,2546.4,0.00589356]
[1750032181830,3.99307,2546.5,2546.4,0.00589356]
[1750032182031,28.26607,2546.5,2546.4,0.00589356]
[1750032189632,28.27507,2546.5,2546.4,0.00589356]
[1750032191933,0.78545,2545.9,2545.8,1.3298]
[1750032192235,1.96334,2546.3,2545.8,1.3298]
[1750032192236,30.647,2546.1,2546.0,0.78542]
[1750032192731,3.2078,2546.5,2546.0,0.78542]
[1750032192931,31.43431,2546.4,2546.3,0.7853]
[1750032193133,0.78534,2546.3,2546.2,0.78536]
[1750032193333,31.43432,2546.4,2546.3,0.78533]
[1750032194039,0.78534,2546.3,2546.2,0.78534]
[1750032194336,3.2078,2546.5,2546.4,0.7853]
[1750032194527,3.56e-06,2546.9,2546.3,1.96333]
[1750032194729,3.56e-06,2546.9,2546.2,3.2078]
[1750032194730,3.56e-06,2546.9,2546.8,3.99297]
[1750032195235,3.56e-06,2546.9,2546.8,0.78517]
[1750032197838,3.56e-06,2546.9,2546.8,3.99297]
[1750032198140,3.56e-06,2546.9,2546.8,0.78517]
[1750032198939,3.56e-06,2546.9,2546.8,3.99297]
[1750032200830,3.56e-06,2546.9,2546.8,0.78517]
[1750032201228,3.56e-06,2546.9,2546.8,3.99297]
[1750032203031,3.56e-06,2546.9,2546.8,0.78517]
[1750032204640,0.76270365,2547.0,2546.9,0.78514]
[1750032205041,0.7851,2547.1,2547.0,0.7851]
[1750032206640,0.78512,2547.0,2546.9,0.78512]
[1750032206837,0.78515,2546.9,2546.8,0.78515]
[1750032207036,0.78513,2547.0,2546.9,0.78513]
[1750032207949,33.8678,2547.2,2547.1,0.78508]
[1750032207950,34.65286,2547.2,2547.1,0.78508]
[1750032208134,35.56673202,2547.2,2547.1,0.78508]
[1750032208533,34.61886,2547.2,2547.1,0.78508]
[1750032209836,0.78511,2547.0,2546.9,2.11601]
[1750032210441,0.78511,2547.1,2547.0,0.7851]
[1750032210944,10.36686,2547.2,2547.1,0.78508]
[1750032211135,9.5818,2547.2,2547.1,0.78508]
[1750032211555,9.5818,2547.2,2547.0,0.78508]
[1750032211556,0.78509,2547.1,2547.0,0.78508]
[1750032211947,10.36687,2547.2,2547.1,0.78508]
[1750032213441,0.78511,2547.0,2546.9,2.11602]
[1750032213744,0.78511,2547.0,2546.9,2.11604]
[1750032214049,12.94686,2547.2,2547.1,0.78508]
[1750032214254,11.69876,2547.2,2547.1,0.78508]
[1750032214748,11.31483625,2547.2,2547.1,0.78508]
[1750032214951,10.36686,2547.2,2547.1,0.78508]
[1750032215743,9.5818,2547.2,2547.1,0.78508]
[1750032215944,10.36685,2547.2,2547.1,0.78508]
[1750032217649,0.78509,2547.1,2547.0,0.78509]
[1750032220647,0.94940772,2547.1,2547.0,0.78509]
[1750032220850,10.36687,2547.2,2547.1,0.78508]
[1750032221048,11.31628341,2547.2,2547.1,0.78508]
[1750032222444,10.53121341,2547.2,2547.1,0.78508]
[1750032223848,35.50426341,2547.2,2547.1,0.78508]
[1750032224258,35.50426341,2547.2,2546.8,6.93368577]
[1750032224259,0.78511,2547.0,2546.7,2.34688577]
[1750032224446,1.73678603,2546.9,2546.8,0.78514]
[1750032224851,0.95163603,2546.9,2546.8,3.99294]
[1750032225052,9.5348,2547.2,2547.1,0.78508]
[1750032225247,10.48657419,2547.2,2547.1,0.78508]
[1750032225454,34.67257419,2547.2,2547.1,0.78508]
[1750032226157,35.45762419,2547.2,2547.1,0.78508]
[1750032226354,8.06382419,2547.2,2547.1,0.78508]
[1750032226569,32.24982419,2547.2,2547.1,0.78508]
[1750032231063,31.46477419,2547.2,2546.8,2.34688577]
[1750032231262,0.78513,2547.0,2546.9,0.78513]
[1750032231462,1.73690419,2547.0,2546.9,0.78513]
[1750032231768,0.95177419,2547.0,2546.9,0.78513]
[1750032232465,0.95177419,2547.0,2546.9,2.06833]
[1750032233270,0.95177419,2547.0,2546.8,6.33984577]
[1750032233467,0.78513,2547.0,2546.9,0.78512]
[1750032233664,1.73545545,2547.0,2546.9,0.78512]
[1750032233965,2.38025545,2547.0,2546.9,0.78512]
[1750032234763,0.78516,2546.9,2546.8,0.78515]
[1750032234964,1.73548545,2546.9,2546.8,0.78515]
[1750032235769,0.95032545,2546.9,2546.8,0.78515]
[1750032235971,25.60193,2547.0,2546.9,0.78514]
[1750032236168,0.78517,2546.9,2546.8,0.78516]
[1750032236469,1.73552731,2546.9,2546.8,0.78516]
[1750032237372,0.78517,2546.8,2546.7,3.76736577]
[1750032237664,0.7852,2546.7,2546.6,3.13209577]
[1750032238070,25.10952535,2546.7,2546.6,0.78523]
[1750032238373,24.159,2546.7,2546.6,0.78523]
[1750032239169,24.159,2546.7,2546.6,3.13211577]
[1750032240367,24.159,2546.7,2546.6,0.78523]
[1750032240671,25.10966527,2546.7,2546.6,0.78523]
[1750032241677,0.78523,2546.6,2546.5,3.99305]
[1750032241862,1.60606527,2546.6,2546.3,3.65558577]
[1750032242065,0.78535,2546.3,2546.2,0.78534]
[1750032242262,6.328,2546.4,2546.3,0.78533]
[1750032242458,8.06360815,2546.4,2546.3,0.78533]
[1750032243565,8.06360815,2546.4,2546.1,0.78537]
[1750032243566,0.78539,2546.2,2546.1,0.78537]
[1750032244066,24.94635,2546.3,2546.1,0.78537]
[1750032244274,24.94635,2546.3,2546.2,0.78536]
[1750032244972,24.161,2546.3,2546.2,0.78536]
[1750032245275,24.94633,2546.3,2546.2,0.78536]
[1750032245769,24.161,2546.3,2546.2,0.78536]
[1750032246170,24.94633,2546.3,2546.2,0.78536]
[1750032247768,24.161,2546.3,2546.2,0.78536]
[1750032252683,24.94633,2546.3,2546.2,0.78536]
[1750032252975,24.161,2546.3,2546.2,0.78536]
[1750032253270,0.6554,2546.6,2546.2,3.2078]
[1750032253475,30.404,2546.5,2546.4,0.7853]
[1750032253882,31.18927,2546.5,2546.4,0.7853]
[1750032254074,30.404,2546.5,2546.4,0.7853]
[1750032254374,0.78525,2546.6,2546.5,0.78527]
[1750032254576,31.18525,2546.6,2546.5,0.78527]
[1750032255376,0.78527,2546.5,2546.4,1.46098]
[1750032256877,31.18526,2546.6,2546.5,0.78527]
[1750032257581,0.78527,2546.5,2546.4,1.46098]
[1750032258179,0.78533,2546.3,2546.2,3.8854]
[1750032258380,0.78532,2546.4,2546.2,4.5647]
[1750032258576,0.78532,2546.4,2546.3,0.78532]
[1750032260485,0.78531,2546.4,2546.3,0.7853]
[1750032260980,6.285,2546.6,2546.2,4.5647]
[1750032261179,9.4928,2547.0,2546.6,0.78523]
[1750032261488,0.00589356,2547.3,2547.2,0.78505]
[1750032261489,0.65759356,2547.3,2547.2,0.78505]
[1750032261789,0.00589356,2547.3,2547.2,0.78505]
[1750032261975,9.4928,2547.7,2547.2,1.47445]
[1750032262282,31.7391,2548.0,2547.2,4.31628577]
[1750032262589,0.78487,2547.8,2547.3,0.6514]
[1750032262775,0.78487,2547.8,2547.6,0.7849]
[1750032262981,0.78487,2547.8,2547.7,0.7849]
[1750032263285,0.7849,2547.7,2547.6,0.78492]
[1750032263481,0.7849,2547.7,2547.4,0.00589356]
[1750032263681,0.7849,2547.7,2547.5,0.78494]
[1750032263877,0.7849,2547.7,2547.6,0.78493]
[1750032264299,0.78489,2547.8,2547.6,0.78493]
[1750032264595,1.3722,2547.9,2547.4,0.00589356]
[1750032264596,1.3722,2547.9,2547.4,3.21369356]
[1750032264802,24.129,2547.9,2547.8,0.78485]
[1750032265001,24.91385,2547.9,2547.7,0.78488]
[1750032265300,24.91385,2547.9,2547.8,0.78486]
[1750032266302,24.91385,2547.9,2547.7,0.78487]
[1750032266503,24.129,2547.9,2547.4,1.34879356]
[1750032266695,0.78488,2547.8,2547.7,0.78488]
[1750032267091,24.91385,2547.9,2547.7,0.78488]
[1750032267297,9.72311,2548.0,2547.4,3.31122356]
[1750032267507,0.78488,2547.8,2547.6,0.78491]
[1750032267900,25.4572,2547.9,2547.4,1.34879356]
[1750032268201,0.78491,2547.7,2547.6,0.78493]
[1750032268798,0.78494,2547.6,2547.5,0.78494]
[1750032269505,0.78493,2547.6,2547.5,0.78494]
[1750032269701,0.78492,2547.7,2547.6,0.78493]
[1750032269901,0.78493,2547.6,2547.5,0.78494]
[1750032270204,0.78492,2547.7,2547.6,0.78492]
[1750032271202,0.78493,2547.6,2547.5,0.78494]
[1750032271393,0.78493,2547.6,2547.4,0.00589356]
[1750032271394,0.78491,2547.7,2547.6,0.78493]
[1750032271593,0.78488,2547.8,2547.7,0.78489]
[1750032271793,0.6517,2548.0,2547.9,0.78483]
[1750032271990,30.385,2548.0,2547.9,0.78483]
[1750032272798,3.2078,2548.1,2548.0,0.7848]
[1750032272998,34.37359,2548.1,2548.0,0.7848]
[1750032273201,3.2078,2548.1,2548.0,0.7848]
[1750032274000,0.7848,2548.0,2547.8,0.78484]
[1750032274199,0.7848,2548.0,2547.9,0.78483]
[1750032274401,0.78486,2547.8,2547.7,1.45938]
[1750032274594,0.78485,2547.9,2547.8,0.78486]
[1750032275098,0.78486,2547.8,2547.7,1.45938]
[1750032275605,0.78486,2547.9,2547.7,1.45938]
[1750032275806,0.78486,2547.9,2547.8,0.78486]
[1750032277210,0.78482,2548.0,2547.9,0.78482]
[1750032277602,0.78485,2547.9,2547.8,0.78484]
[1750032278004,0.78482,2548.0,2547.9,0.78482]
[1750032278306,2.1176,2548.1,2548.0,0.7848]
[1750032279200,30.385,2548.2,2547.7,0.6745]
[1750032279201,0.78476,2548.2,2548.1,0.78475]
[1750032279397,31.15676,2548.2,2548.1,0.78475]
[1750032279604,31.15276,2548.2,2548.1,0.78475]
[1750032279810,0.78479,2548.1,2548.0,0.78478]
[1750032281310,31.6742,2548.2,2547.8,0.6745]
[1750032281311,32.45897,2548.2,2548.1,0.78477]
[1750032281511,31.15277,2548.2,2548.1,0.78477]
[1750032282714,0.78479,2548.1,2548.0,0.78478]
[1750032285207,30.368,2548.2,2548.1,0.78477]
[1750032285812,31.12174,2548.2,2548.1,0.78477]
[1750032286108,6.26,2548.2,2548.1,0.78477]
[1750032288418,30.336,2548.2,2548.1,0.78477]
[1750032288720,0.6568,2548.6,2548.5,0.78465]
[1750032289017,31.77644,2548.6,2548.5,0.78465]
[1750032289808,0.78467,2548.5,2548.4,0.78466]
[1750032290216,24.86067,2548.5,2548.4,0.78466]
[1750032291413,25.80530701,2548.5,2548.4,0.78466]
[1750032298620,31.27663701,2548.5,2548.4,0.78466]